Cogmind - Beta 13 @@@ ROGUE MODE // 2024.02.28 @ 18:16:24 Player: morimori Result: Destroyed by G-67 Veteran with Field Laser Performance ------------- Evolutions (4) 2000 Regions Visited (8) 1600 Robots Destroyed (145) 725 Value Destroyed (4311) 4311 Prototype IDs (55) 1100 Alien Tech Used (0) 0 Bonus (186) 186 TOTAL SCORE: 9922 Bonus ------- High Alert Combat Kills 59 Follower Combat Kills 273 Aligned with FarCom 300 Friendly Fire -446 Cogmind --------- Core Integrity 0/850 Matter 238/300 Energy 84/125 System Corruption 10% Temperature Cool (21) Movement Walking (115) Location -6/Factory Parts ------- > --- POWER (1) -------- Light Ion Engine > --- PROPULSION (4) --- Light Armored Exoskeleton Potential Leg > --- UTILITY (7) ------ Advanced Heat Sink High-capacity Storage Unit Structural Scanner Advanced Sensor Array Improved Signal Interpreter Seismic Detector Transmission Jammer > --- WEAPON (3) ------- Heavy Particle Cannon Heavy Particle Cannon > --- INVENTORY (20) --- Improved Cooling System Improved Cooling System Improved Cooling System High-capacity Battery (250) Compact Battery (200) Matter Compressor (250) Structural Scanner Enhanced Optical Array Improved Terrain Scanner Cloak of Protection Insulated Plating Thermal Shield EM Disruption Field EM Disruption Field Component Analysis Suite Dynamic Insulation System Peak State ------------ > --- POWER ------------ Cold Fusion Reactor > --- PROPULSION ------- Armored Leg Armored Leg Armored Leg Potential Leg > --- UTILITY ---------- Advanced Heat Sink High-capacity Storage Unit Improved Signal Interpreter EM Disruption Field Hacking Suite Hacking Suite System Shield > --- WEAPON ----------- Variable Charge Gun Heavy Plasma Cannon Heavy Rocket Launcher > --- INVENTORY -------- Fission Core Light Armored Exoskeleton Potential Leg Advanced Heat Sink High-capacity Battery Matter Compressor Structural Scanner Enhanced Optical Array Advanced Sensor Array Transmission Jammer Cloak of Protection Thermal Shield Component Analysis Suite Dynamic Insulation System Precision Shock Rifle Force Rifle Proton Cannon Heavy Ion Cannon Advanced EMP Blaster [Rating: 78] Favorites ----------- Power Light Nuclear Core Engine Ion Engine Power Core Light Nuclear Core Reactor Cold Fusion Reactor Propulsion Compact Wheel Leg Carbon-fiber Leg Wheel Compact Wheel Flight Unit Improved VTOL Module Utility Hacking Suite Device Structural Scanner Storage High-capacity Storage Unit Processor Improved Signal Interpreter Hackware Hacking Suite Protection Core Shielding Weapon Rocket Launcher Energy Gun Medium Laser Energy Cannon Heavy Ion Cannon Ballistic Gun Assault Rifle Ballistic Cannon Bore Cannon Launcher Rocket Launcher Impact Weapon Great Maul Build | -11 -10 -10 -10 -9 -8 -8 -7 -6 ------- Run | Yrd Mat Min Exi Min Mat Sto Fac Fac Slots Evolved 8 | . . . . . 4 . 2 2 Power . | . . . . . . . . . Propulsion 2 | . . . . . . . 2 . Utility 5 | . . . . . 3 . . 2 Weapon 1 | . . . . . 1 . . . Parts Attached 213 | 8 19 3 . 1 23 14 58 87 Power 18 | 1 3 1 . 1 3 . 4 5 Engine 11 | 1 3 1 . 1 . . 2 3 Core 6 | . . . . . 3 . 2 1 Reactor 1 | . . . . . . . . 1 Propulsion 34 | 2 6 . . . 5 1 10 10 Treads . | . . . . . . . . . Leg 23 | 1 . . . . 2 . 10 10 Wheel 10 | 1 6 . . . 2 1 . . Hover . | . . . . . . . . . Flight 1 | . . . . . 1 . . . Utility 109 | 3 6 . . . 6 4 32 58 Device 81 | 2 1 . . . 3 1 23 51 Storage 5 | 1 2 . . . . . 2 . Processor 3 | . . . . . . . 2 1 Hackware 4 | . . . . . . 2 . 2 Protection 16 | . 3 . . . 3 1 5 4 Artifact . | . . . . . . . . . Weapon 52 | 2 4 2 . . 9 9 12 14 Energy Gun 25 | 1 2 . . . 6 5 5 6 Energy Cannon 10 | . . . . . . . 4 6 Ballistic Gun 3 | 1 2 . . . . . . . Ballistic Cannon 4 | . . 1 . . 1 2 . . Launcher 8 | . . 1 . . 1 1 3 2 Special Weapon . | . . . . . . . . . Impact Weapon 2 | . . . . . 1 1 . . Slashing Weapon . | . . . . . . . . . Piercing Weapon . | . . . . . . . . . Special Melee Weapon . | . . . . . . . . . Unidentified Prototypes 6 | . . . . . 2 4 . . Parts Lost 29 | . 3 . . . 1 . 3 22 Power 3 | . 1 . . . . . . 2 Propulsion 8 | . 1 . . . 1 . 1 5 Utility 8 | . 1 . . . . . 1 6 Weapon 10 | . . . . . . . 1 9 Highest Loss Streak 17 | . 3 . . . 1 . 1 17 To Critical Strikes . | . . . . . . . . . Average Slot Usage (%) 97 | . 96 100 100 100 95 99 99 94 Engine 5 | . 14 14 14 14 3 . 3 2 Core 2 | . . . . . 5 9 3 1 Leg 13 | . . . . . 2 . 29 24 Wheel 10 | . 25 28 28 28 14 17 . . Device 9 | . 2 . . . 22 14 7 13 Storage 9 | . 14 14 14 14 9 9 7 6 Processor 2 | . . . . . . . 4 6 Hackware 8 | . . . . . . 12 15 17 Protection 6 | . 11 14 14 14 10 9 2 . Energy Gun 8 | . 13 7 . . 9 8 10 6 Energy Cannon 2 | . . . . . . . 3 5 Ballistic Gun 1 | . 13 . . . . . . . Ballistic Cannon 3 | . . 6 14 14 8 8 . . Launcher 7 | . . 14 14 14 9 9 7 4 Naked Turns . | . . . . . . . . . Heaviest Build 115 | 15 92 99 99 101 114 115 65 77 Greatest Support 82 | 16 26 26 26 26 32 32 80 82 Greatest Overweight (x) 7 | 1 5 3 3 3 7 7 1 2 Average Overweight (x) 1 | . 2 3 3 3 4 3 . . Largest Inventory Capacity 25 | 8 25 25 25 25 25 25 25 20 Average Capacity 22 | 7 23 25 25 25 25 25 20 20 Most Carried 25 | 8 25 25 25 25 25 25 25 20 Average Carried 21 | 5 20 24 24 24 24 24 19 19 Final Capacity 25 | 8 25 25 25 25 25 25 20 20 Final Carried 25 | 8 25 25 25 25 25 25 20 16 Class Distribution -------------------- 30% | Mutant 23% | Hacker-Skirmisher 11% | Skirmisher 10% | Hacker-Bomber 7% | Commander-Skirmisher 6% | Scavenger-Skirmisher 5% | Scavenger-Bomber 3% | Tank Dominant Class ---------------- Mutant | -10/Materials Mutant | -10/Mines Mutant | -10/Exiles Mutant | -9/Mines Skirmisher | -8/Materials Commander-Skirmisher | -8/Storage Hacker-Bomber | -7/Factory Hacker-Skirmisher | -6/Factory Resources | -11 -10 -10 -10 -9 -8 -8 -7 -6 ----------- Run | Yrd Mat Min Exi Min Mat Sto Fac Fac Matter Collected 3594 | 310 482 51 23 . 690 218 772 1048 Remotely . | . . . . . . . . . Salvage Created 5779 | 134 819 44 . . 535 252 2203 1792 Parts 284 | 14 46 11 . . 35 16 90 72 Haulers Intercepted 7 | . 1 . . . 2 3 1 . Recyclers Shooed 14 | 1 2 . . . 4 . 1 6 Parts Field Recycled . | . . . . . . . . . Retrieved Matter . | . . . . . . . . . Parts Self-Destructed . | . . . . . . . . . Prevented . | . . . . . . . . . Kills | -11 -10 -10 -10 -9 -8 -8 -7 -6 ------- Run | Yrd Mat Min Exi Min Mat Sto Fac Fac Combat Hostiles Destroyed 83 | . 9 9 . . 9 1 29 26 Guns 22 | . 9 . . . . 1 9 3 Cannons 20 | . . . . . 4 . 8 8 AOE 34 | . . 9 . . 5 . 8 12 Classes Destroyed 15 | 3 6 . . . 2 . 3 1 Worker 11 | 1 . . . . 3 . 5 2 Builder 8 | . 3 . . . . . 1 4 Tunneler 6 | 3 1 . . . . . . 2 Hauler 7 | . 1 . . . 2 3 1 . Recycler 16 | 1 4 . . . 1 . 6 4 Operator 7 | . 1 . . . . 3 2 1 Watcher 6 | . 3 . . . 1 . 2 . Swarmer 15 | . 3 9 . . . . . 3 Grunt 40 | . 6 . . . 6 . 18 10 Brawler 3 | . . . . . 2 . . 1 Duelist 1 | . . . . . . . 1 . Sentry 8 | . . . . . 1 1 4 2 Specialist 2 | . . . . . . . . 2 Hunter 5 | . . . . . . . 1 4 Programmer 10 | . . . . . . . 6 4 Best Kill Streak 10 | 3 6 3 . . 6 3 7 10 Combat Bots Only 7 | . 5 3 . . 3 1 4 7 Max Kills in Single Turn 8 | 2 1 3 . . 3 1 4 8 Gunslinging . | . . . . . . . . . Exploded 5 | . . 3 . . 2 . 3 5 Melee . | . . . . . . . . . Uniques/NPCs Destroyed . | . . . . . . . . . Combat | -11 -10 -10 -10 -9 -8 -8 -7 -6 -------- Run | Yrd Mat Min Exi Min Mat Sto Fac Fac Hostile Shots Fired 752 | . 66 11 . . 37 6 228 404 Missed 251 | . 19 1 . . 16 1 98 116 Damage Taken 7247 | . 577 96 . . 322 76 1445 4731 Core 1177 | . 168 . . . 29 18 105 857 Absorbed by Shields . | . . . . . . . . . Ignored by Resistances 200 | . . . . . . . 63 137 Regen/Repaired (Parts) 263 | . 130 . . . . . 49 84 Core Remaining (%) 77 | 100 . . . 32 . 91 85 . Volleys Fired 434 | 10 69 4 . . 77 34 119 121 Largest 3 | 2 2 2 . . 2 2 2 3 Hottest 181 | 70 70 83 . . 122 118 141 181 Shots Fired 731 | 20 138 8 . . 112 43 211 199 Gun 457 | 20 138 4 . . 47 31 133 84 Cannon 245 | . . . . . 59 12 66 108 Launcher 29 | . . 4 . . 6 . 12 7 Special . | . . . . . . . . . Kinetic 150 | 10 69 . . . 59 12 . . Thermal 530 | 10 69 4 . . 42 23 195 187 Explosive 16 | . . 4 . . 6 . . 6 Electromagnetic 35 | . . . . . 5 8 16 6 Robot Hit Streak 21 | 4 21 1 . . 4 4 20 14 Robot Miss Streak 5 | 1 3 1 . . 5 2 5 4 Penetration Max 1 | . . . . . 1 . . . Secondary Targets 2 | . 2 . . . . . . . Max Gunslinging Chain 1 | . 1 . . . . . . . Shots Hit Robots 425 | 13 95 1 . . 40 18 143 115 Core Hits 228 | 6 36 12 . . 28 8 75 63 Critical Kills 8 | . . . . . 4 3 . 1 Critical Parts Destroyed 11 | . . . . . 8 2 . 1 Critical Strikes 43 | . 4 . . . 13 7 15 4 Burn 23 | . 4 . . . 1 1 15 2 Destroy 20 | . . . . . 12 6 . 2 Melee Attacks . | . . . . . . . . . Impact . | . . . . . . . . . Slashing . | . . . . . . . . . Piercing . | . . . . . . . . . Sneak Attacks . | . . . . . . . . . Combat Hostiles . | . . . . . . . . . Follow-up Attacks . | . . . . . . . . . Damage Inflicted 12778 | 171 1240 506 . . 1434 378 4699 4350 Guns 5257 | 171 1240 . . . 351 236 1966 1293 Cannons 3152 | . . . . . 387 142 1070 1553 Explosions 4328 | . . 506 . . 696 . 1649 1477 Melee . | . . . . . . . . . Ramming 41 | . . . . . . . 14 27 Kinetic 1208 | 121 558 . . . 387 142 . . Thermal 7649 | 50 682 36 . . 322 236 3104 3219 Explosive 2532 | . . 470 . . 696 . 593 773 Electromagnetic 1348 | . . . . . 29 . 988 331 Impact . | . . . . . . . . . Slashing . | . . . . . . . . . Piercing . | . . . . . . . . . Highest Corruption 10 | . . . . . . . 6 10 Average Corruption 4 | . . . . . . . 4 8 Corruption Purged 3 | . . . . . . . 3 . Corruption Blocked . | . . . . . . . . . Effects 86 | . . . . . . . 67 19 Message Errors 21 | . . . . . . . 16 5 Matter Fused 15 | . . . . . . . 14 1 Heat Flow Errors 8 | . . . . . . . 5 3 Energy Discharges 12 | . . . . . . . 9 3 Parts Rejected 2 | . . . . . . . 1 1 Data Loss (minor) 16 | . . . . . . . 13 3 Data Loss (major) 3 | . . . . . . . 3 . Alerts 3 | . . . . . . . 3 . Weapon Failures 6 | . . . . . . . 3 3 Overload Shots . | . . . . . . . . . Overflow Damage 273 | . . 17 . . 1 . 112 143 Projectiles 108 | . . . . . 1 . 45 62 Explosions 165 | . . 17 . . . . 67 81 Melee . | . . . . . . . . . Knockbacks 2 | . . . . . 2 . . . Impact . | . . . . . . . . . Kinetic 2 | . . . . . 2 . . . Secondary . | . . . . . . . . . Self-Inflicted Damage 158 | . . 10 . . . . 73 75 Shots 8 | . . 1 . . . . 4 3 Rammed . | . . . . . . . . . Targets Rammed 2 | . . . . . . . 1 1 Kicked 2 | . . . . . . . 1 1 Crushed . | . . . . . . . . . Highest Temperature 270 | 27 157 42 . . 270 192 266 231 Average Temperature 55 | 11 44 16 . . 66 49 71 53 Received Heat Transfer 1546 | . 321 . . . 180 . 342 703 Effects 3 | . . . . . . . . 3 Interference 3 | . . . . . . . . 3 Siege Activations . | . . . . . . . . . Robots Corrupted 3 | . . . . . . . 2 1 Combat Hostiles 3 | . . . . . . . 2 1 Parts Fried 7 | . . . . . . . 4 3 Impact Corruptions . | . . . . . . . . . Robots Melted 4 | . . . . . . . 2 2 Combat Hostiles 4 | . . . . . . . 2 2 Parts Melted 32 | . 2 . . . 1 1 12 16 Heat Transferred 15169 | 148 2294 50 . . 814 518 6474 4871 Parts Sabotaged . | . . . . . . . . . Parts Stolen . | . . . . . . . . . Parts Stripped . | . . . . . . . . . Power Chain Reactions 4 | . . . . . . . 2 2 Alert | -11 -10 -10 -10 -9 -8 -8 -7 -6 ------- Run | Yrd Mat Min Exi Min Mat Sto Fac Fac Peak Influence 538 | 25 208 343 . . 296 258 538 290 Initial 111 | . 16 . . . . 111 28 37 Average 138 | 9 48 128 . . 96 88 228 157 Maximum Alert Level 2 | . 1 1 . . 1 1 2 1 Low Security (%) 71 | 100 98 82 . 100 71 88 45 69 Level 1 23 | . 1 17 . . 28 11 33 30 Level 2 5 | . . . . . . . 21 . Level 3 . | . . . . . . . . . Level 4 . | . . . . . . . . . Level 5 . | . . . . . . . . . High Security . | . . . . . . . . . Max Security . | . . . . . . . . . Squads Dispatched 20 | . 2 . . . 2 2 8 6 Investigation 5 | . 1 . . . . 1 1 2 Extermination 7 | . . . . . . . 4 3 Reinforcement 8 | . 1 . . . 2 1 3 1 Assault . | . . . . . . . . . Garrison . | . . . . . . . . . Intercept . | . . . . . . . . . Searches Triggered . | . . . . . . . . . Construction Impeded 2 | . . . . . 1 . 1 . Haulers Reinforced 1 | . . . . . . . 1 . Active Scanning Responses . | . . . . . . . . . Cargo Convoy Interrupts 1 | . . . . . . . . 1 Stealth | -11 -10 -10 -10 -9 -8 -8 -7 -6 --------- Run | Yrd Mat Min Exi Min Mat Sto Fac Fac Distress Signals 8 | . 1 . . . 3 . 4 . Communications Jammed . | . . . . . . . . . Distress Signals . | . . . . . . . . . Times Spotted 145 | . 16 8 . 5 21 8 40 47 Peak Tracking Total 14 | . 5 3 . 13 6 2 5 14 Tactical Retreats 10 | . . . . 1 5 . 4 . Traps | -11 -10 -10 -10 -9 -8 -8 -7 -6 ------- Run | Yrd Mat Min Exi Min Mat Sto Fac Fac Traps Triggered 12 | . 3 . . . . 1 3 5 Indirectly 3 | . . . . . . . 3 . Trap Hack Attempts . | . . . . . . . . . Triggered . | . . . . . . . . . Disarmed . | . . . . . . . . . Reprogrammed . | . . . . . . . . . Reused . | . . . . . . . . . Traps Extracted . | . . . . . . . . . Installed . | . . . . . . . . . Triggered . | . . . . . . . . . Machines | -11 -10 -10 -10 -9 -8 -8 -7 -6 ---------- Run | Yrd Mat Min Exi Min Mat Sto Fac Fac Machines Disabled 21 | . . 4 . . . 5 6 6 Max in Single Turn 3 | . . 3 . . . 1 2 2 Garrison Access 5 | . . . . . . 1 2 2 Machines Repaired . | . . . . . . . . . Machines Dismantled . | . . . . . . . . . Machines Sabotaged . | . . . . . . . . . Overloaded Fab Kills . | . . . . . . . . . Hacking | -11 -10 -10 -10 -9 -8 -8 -7 -6 --------- Run | Yrd Mat Min Exi Min Mat Sto Fac Fac Machines Accessed 63 | . 10 . 1 . 3 13 14 22 Terminals 39 | . 7 . . . 2 12 7 11 Fabricators 4 | . . . . . . . 2 2 Repair Stations 3 | . 1 . . . . . 1 1 Recycling Units 9 | . 2 . . . . . 2 5 Scanalyzers 2 | . . . . . 1 . . 1 Garrison Access 5 | . . . . . . 1 2 2 Total Hacks 179 | . 44 . 1 . 8 39 34 53 Successful 106 | . 22 . 1 . 6 26 22 29 Failed 71 | . 21 . . . 2 12 12 24 Catastrophic 7 | . 3 . . . . . . 4 Database Lockouts 2 | . 1 . . . . 1 . . Manual 99 | . 27 . 1 . 5 18 19 29 Terminals 134 | . 35 . . . 5 38 23 33 Fabricators 11 | . . . . . . . 4 7 Repair Stations 8 | . 4 . . . . . 2 2 Recycling Units 15 | . 5 . . . . . 3 7 Scanalyzers 5 | . . . . . 3 . . 2 Garrison Access 5 | . . . . . . 1 2 2 Terminal Hacks 52 | . 11 . 1 . 1 22 9 8 Part Schematic 5 | . . . . . . 2 . 3 Robot Schematic 1 | . . . . . . 1 . . Robot Analysis 2 | . 1 . . . . . 1 . Prototype ID Bank 15 | . 6 . . . . 6 2 1 Open Door 3 | . . . . . . 3 . . Branch Access Points 1 | . . . . . . . . 1 Terminal Index 4 | . . . . . 1 1 1 1 Fabricator Index 1 | . . . . . . . . 1 Alert Level 1 | . . . . . . 1 . . Unreport Threat 5 | . . . . . . 2 3 . Locate Traps 7 | . 3 . . . . 3 . 1 Recall Reinforcements 1 | . . . . . . . 1 . Registered Prototypes 1 | . . . . . . . 1 . Zone Layout 4 | . 1 . . . . 3 . . Derelict Proto ID Bank 1 | . . . 1 . . . . . Fabricator Hacks 4 | . . . . . . . 1 3 Load Schematic 3 | . . . . . . . 1 2 Build 1 | . . . . . . . . 1 Repair Station Hacks 8 | . 4 . . . . . 2 2 Scan Component 4 | . 2 . . . . . 1 1 Repair 4 | . 2 . . . . . 1 1 Recycling Unit Hacks 7 | . 1 . . . . . 2 4 Retrieve Components 7 | . 1 . . . . . 2 4 Scanalyzer 4 | . . . . . 3 . . 1 Insert Component 2 | . . . . . 1 . . 1 Analyze 2 | . . . . . 2 . . . Garrison Access Hacks 5 | . . . . . . 1 2 2 Seal Access 5 | . . . . . . 1 2 2 Unauthorized Hacks 26 | . 6 . . . 2 3 6 9 Terminals 24 | . 6 . . . 2 3 6 7 Track 2 | . 2 . . . . . . . Assimilate 5 | . . . . . . . 4 1 Botnet 8 | . 2 . . . 1 2 1 2 Disrupt 4 | . 1 . . . . 1 . 2 Operators 5 | . 1 . . . 1 . 1 2 Fabricators . | . . . . . . . . . Repair Stations . | . . . . . . . . . Recycling Units 2 | . . . . . . . . 2 Monitor 1 | . . . . . . . . 1 Mask 1 | . . . . . . . . 1 Scanalyzers . | . . . . . . . . . Garrison Access . | . . . . . . . . . Data Cores Recovered 2 | . . . . . . 2 . . Used 1 | . . . . . . 1 . . Hacking Detections 49 | . 9 . . . 3 8 11 18 Full Trace Events 5 | . 1 . . . . 1 1 2 Feedback Events 1 | . . . . . . . 1 . Corruption 1 | . . . . . . . 1 . Feedback Blocked . | . . . . . . . . . Robot Schematics Acquired 1 | . . . . . . 1 . . Robots Built . | . . . . . . . . . Authchips . | . . . . . . . . . Time . | . . . . . . . . . Total Robot Build Rating . | . . . . . . . . . Part Schematics Acquired 6 | . . . . . 1 2 . 3 Parts Built 1 | . . . . . . . . 1 Authchips . | . . . . . . . . . Time 58 | . . . . . . . . 58 Total Part Build Rating 3 | . . . . . . . . 3 Parts Repaired 4 | . 2 . . . . . 1 1 Time 109 | . 52 . . . . . 19 38 Parts Recycled . | . . . . . . . . . Recycled Matter . | . . . . . . . . . Retrieved Matter . | . . . . . . . . . Retrieved Components 23 | . 1 . . . . . 12 10 Parts Scanalyzed 1 | . . . . . 1 . . . Part Schematics Acquired 1 | . . . . . 1 . . . Parts Damaged 1 | . . . . . 1 . . . Bothacking | -11 -10 -10 -10 -9 -8 -8 -7 -6 ------------ Run | Yrd Mat Min Exi Min Mat Sto Fac Fac Used RIF Installer . | . . . . . . . . . Robots Hacked . | . . . . . . . . . Non-combat . | . . . . . . . . . Combat . | . . . . . . . . . Robot Hacks Applied . | . . . . . . . . . Relay Couplers Released . | . . . . . . . . . Fabnet Peak Effective % . | . . . . . . . . . Robots Rewired . | . . . . . . . . . Allies Hacked . | . . . . . . . . . Hacks Repelled . | . . . . . . . . . Allies | -11 -10 -10 -10 -9 -8 -8 -7 -6 -------- Run | Yrd Mat Min Exi Min Mat Sto Fac Fac Total Allies 16 | . . . . 3 . 10 2 1 Largest Group 10 | . . . . 3 3 10 4 1 Highest-Rated Group 173 | . . . . 40 40 173 63 26 Highest-Rated Ally 29 | . . . . 16 16 29 26 26 Total Orders 27 | . . . . . . 11 12 4 STAY 14 | . . . . . . 6 6 2 FOLLOW 13 | . . . . . . 5 6 2 Ally Attacks 100 | . . . . . 39 46 15 . Total Damage 1097 | . . . . . 367 511 219 . Kills 21 | . . . . . 9 12 . . Allies Corrupted . | . . . . . . . . . Allies Melted . | . . . . . . . . . Intel | -11 -10 -10 -10 -9 -8 -8 -7 -6 ------- Run | Yrd Mat Min Exi Min Mat Sto Fac Fac Robot Analysis Total 2 | . 1 . . . . . 1 . Derelict Logs Recovered 3 | . . 1 . 2 . . . . Drone Launches . | . . . . . . . . . Drone Recoveries . | . . . . . . . . . Exploration | -11 -10 -10 -10 -9 -8 -8 -7 -6 ------------- Run | Yrd Mat Min Exi Min Mat Sto Fac Fac Turns Passed 12996 | 137 1615 859 708 421 1867 1007 3323 3059 Spaces Moved 7844 | 100 935 623 521 301 810 582 2012 1960 Core 30 | 30 . . . . . . . . Treads . | . . . . . . . . . Legs 3972 | . . . . . . . 2012 1960 Wheels 3842 | 70 935 623 521 301 810 582 . . Hover . | . . . . . . . . . Flight . | . . . . . . . . . Fastest Speed 50 | 50 100 135 135 135 135 145 107 105 Average Speed 129 | 86 133 135 135 135 163 145 123 112 Slowest Speed 260 | 100 175 135 135 135 205 205 192 260 Overloaded Moves . | . . . . . . . . . Propulsion Burnouts . | . . . . . . . . . Robots Hopped 1 | . . . . . . 1 . . Cave-ins Triggered . | . . . . . . . . . Exploration Rate (%) 63 | 6 98 98 90 71 34 83 37 50 Regions Visited 8 Branch Regions 4 Pre-discovered Areas 2 | . . 1 . 1 . . . . Known Exits Taken 2 | . . . . . 1 . 1 . Unknown Exits Taken 6 | 1 1 1 1 1 . 1 . . Scrap Searched 4 | . . 2 . 2 . . . . Spaces Dug 41 | . . 10 . . 11 1 4 15 Terrain Destroyed 292 | . . 39 . . 91 4 60 98 Melee . | . . . . . . . . . Projectile 91 | . . . . . 41 4 9 37 AOE 201 | . . 39 . . 50 . 51 61 Terrain Rammed . | . . . . . . . . . Walls Destroyed . | . . . . . . . . . Machines Disabled . | . . . . . . . . . Actions | -11 -10 -10 -10 -9 -8 -8 -7 -6 --------- Run | Yrd Mat Min Exi Min Mat Sto Fac Fac Total 9992 | 130 1168 633 528 317 1265 701 2644 2606 Wait 1243 | . 99 1 . 13 304 53 404 369 Move 7834 | 99 934 622 520 300 809 579 2011 1960 Hop 1 | . . . . . . 1 . . Pick Up 119 | 10 29 1 4 1 22 5 16 31 Fast Attach 47 | 5 9 . . . 5 10 7 11 Attach 34 | 2 3 . . . 3 . 9 17 Detach 10 | 1 1 . . . . 1 5 2 Swap 132 | 1 7 3 . 1 15 4 42 59 Drop 134 | 2 17 2 4 2 30 12 30 35 Fire 434 | 10 69 4 . . 77 34 119 121 Melee . | . . . . . . . . . Ram . | . . . . . . . . . Kick 2 | . . . . . . . 1 1 Crush . | . . . . . . . . . Escape Stasis . | . . . . . . . . . Rewire 2 | . . . . . . 2 . . Trap . | . . . . . . . . . Miscellaneous . | . . . . . . . . . Route ------- -11/Scrapyard -10/Materials (discovered 5 exits: [*Mat x3] / [*Min x2]) -10/Mines (discovered 3 exits: [*Mat x2] / *Exi) -10/Exiles -9/Mines -8/Materials (discovered 2 exits: *Sto x2) -8/Storage (discovered 2 exits: *Fac / *Rec) -7/Factory (discovered 2 exits: *Fac x2) -6/Factory (discovered 3 exits: *Fac / Low x2) History --------- Turn | Location | Event 2 | -11/Scrapyard | Discovered new exit (range 16) 138 | -11/Scrapyard | Entered Materials 318 | -10/Materials | Build established: Mutant 458 | -10/Materials | Core integrity fell below 50% 470 | -10/Materials | Lost 3 parts (1p1n1u) 633 | -10/Materials | Discovered new exit (range 12) 700 | -10/Materials | Repaired Assault Rifle 727 | -10/Materials | Repaired Med. Laser 892 | -10/Materials | Discovered new exit (range 14) 924 | -10/Materials | Central database locked down 1097 | -10/Materials | Discovered new exit (range 15) 1191 | -10/Materials | Discovered new exit (range 14) 1378 | -10/Materials | Discovered new exit (range 14) 1753 | -10/Materials | Entered Mines 1758 | -10/Mines | Met a Derelict bent on vengeance 1792 | -10/Mines | Discovered new exit (range 7) 1954 | -10/Mines | Learned location of 1 exit from Materials 1959 | -10/Mines | Discovered new exit (range 15) 2226 | -10/Mines | A weapon hastily lodged in a ceiling crevice suddenly fell to the ground 2442 | -10/Mines | Learned location of Storage (-8) 2562 | -10/Mines | Deemed a non-threat by the Exiles lab entrance 2562 | -10/Mines | Discovered new exit (range 5) 2612 | -10/Mines | Entered Exiles 2649 | -10/Exiles | Met 8R-AWN 2665 | -10/Exiles | Met EX-HEX 2779 | -10/Exiles | Met EX-DEC 2801 | -10/Exiles | Visited The Gauntlet 2988 | -10/Exiles | Met EX-BIN 3085 | -10/Exiles | Aligned with FarCom system 3086 | -10/Exiles | Given EX-Vault access code 3118 | -10/Exiles | Opened EX-Vault 3127 | -10/Exiles | Found Potential Leg 3129 | -10/Exiles | Found Potential Leg 3133 | -10/Exiles | Found Cloak of Protection 3169 | -10/Exiles | Warned to stay clear of 0b10 Research branches 3310 | -10/Exiles | Discovered new exit (range 10) 3320 | -10/Exiles | Stole two prototypes: Potential Leg, Cloak of Protection 3320 | -10/Exiles | Entered Mines 3554 | -9/Mines | Assembled infested the area 3559 | -9/Mines | Assisted by a Guerilla fighting off Assembled 3638 | -9/Mines | Discovered new exit (range 10) 3654 | -9/Mines | Learned location of Zion (-7) 3696 | -9/Mines | Assisted by bots powering up and referring to "LRC-V3" 3741 | -9/Mines | Entered Materials 3741 | -8/Materials | Accompanied by 3 allies 3741 | -8/Materials | Evolved 4 slots: Utility x3, Weapon x1 3742 | -8/Materials | Identified exit to Storage 4190 | -8/Materials | Build established: Tank 4753 | -8/Materials | Build established: Skirmisher 4789 | -8/Materials | Discovered exit to Storage (range 4) 5608 | -8/Materials | Entered Storage 5609 | -8/Storage | Identified exit to Recycling 5688 | -8/Storage | Assisted by bots powering up and referring to "LRC-V3" 5994 | -8/Storage | Build established: Commander-Skirmisher 6341 | -8/Storage | Used back door to open Recycling access 6422 | -8/Storage | Central database locked down 6501 | -8/Storage | Discovered new exit (range 5) 6557 | -8/Storage | Door terminal overloaded 6615 | -8/Storage | Entered Factory 6615 | -7/Factory | Accompanied by 4 allies 6615 | -7/Factory | Evolved 2 slots: Propulsion x2 6617 | -7/Factory | FarCom data flow suspended 6925 | -7/Factory | Build established: Hacker-Bomber 7000 | -7/Factory | Lost 4 allies 7404 | -7/Factory | Repaired Carbon-fiber Leg 7465 | -7/Factory | Build established: Scavenger-Bomber 8209 | -7/Factory | Discovered new exit (range 12) 8224 | -7/Factory | Identified exit to Factory 8267 | -7/Factory | Build established: Scavenger-Skirmisher 8406 | -7/Factory | Discovered exit to Factory (range 16) 9592 | -7/Factory | P-60 Hacker assimilated allied Technician 4a 9888 | -7/Factory | Build established: Hacker-Skirmisher 9938 | -7/Factory | Entered another Factory area 9938 | -6/Factory | Accompanied by 1 ally 9938 | -6/Factory | Evolved 2 slots: Utility x2 10808 | -6/Factory | Repaired Carbon-fiber Leg 11007 | -6/Factory | Discovered new exit (range 9) 11015 | -6/Factory | Identified exit to Factory 11434 | -6/Factory | Fabricated Adv. EMP Blaster (x1) 12056 | -6/Factory | Identified exit to Lower Caves 12511 | -6/Factory | Cargo convoy interrupted 12553 | -6/Factory | Core integrity fell below 50% 12585 | -6/Factory | Destroyed 7 combat bots 12605 | -6/Factory | Core integrity fell below 20% 12609 | -6/Factory | Lost 17 parts (2p4n5u6w) 12611 | -6/Factory | System corruption reached 10% 12997 | -6/Factory | Destroyed by G-67 Veteran with Field Laser Last Messages --------------- 12983_ K-01 Serf cleans the Fusion Modulator. 12985_ QACCXQRZH2LN90=VM3KWB4PRN1= 12995_ Acquired Hvy. Particle Cannon. 12995_ U-05 Engineer lays Concrete. 12995_ K-01 Serf collects debris. 12996_ U-05 Engineer lays Concrete. 12996_ U-05 Engineer builds a Door. Map ----- +----------------------------------------------------+ | ?????????????????????????????????????????????????? | | ?????????????????????????????????????????????????? | | ?????????????????????????????????????????????????? | | ?????????????????????????????????????????????????? | | ????????? ???????????????????????????????????????? | | ???????? ???????????????????????????????????????? | | # #### ???????????????????????????? | | #########/########### ??????????????????????????? | | ?????????????????????????? | | ?????????????????????????? | | ?????????????????????????? | | ????????????????????????? | | ???????????????????????? | | ?? ???????????????????????? | | ##??# ????????????????????????? | | ##??# ????????????????????????? | | ##??# #?????#??????????????????? | | ##### ##### ###????????????????? | | u #;;;;/#####+###????????????????? | | ; g ##????????????????? | | ######;;;! g% ##????????????????? | | ###### * = ##????????????????? | | ######; % u ##????????????????? | | = =]] ##????????????????? | | ; =]] ##????????????????? | | """ @] ##????????????????? | | Y" * ##????????????????? | | """ "%" """ # ##????????????????? | | """ %"% # ; k ##????????????????? | | ""% "%" % ; ; ##????????????????? | | % # ; # ???????????????? | | % ##;#+;;###########???????????????? | | u #########???????????????? | | % % # ??????????????????????? | | """""" % """ # ??????????????????????? | | """""" = % """"# ??????????????????????? | | """""" "" % "F""# ??????????????????????? | | """""" " % ""# ??????????????????????? | | %= ""# ??????????????????????? | | """""" "" # ??????????????????????? | | """""" " !%! # ??????????????????????? | | """""" " # """?????? ??????????? | | """""" "" # ?? # ^ ??????????? | | % + ""??""? # "??????????? | | """""" "" """" # """???? + """????????? | | """""" """ " " """ # """???? #^ """ ???????? | | """""" """""" """""" # ???? # ^ ????????? | | """""" """"""% """"" # ??? # """" ?? ???? | | ^ # # """" ^ ??? | | """""" """""" """""" #####+##### """" ^ ??? | +----------------------------------------------------+ Best States ------------- Heat Dissipation 56 Energy Generation 18 Energy Capacity 310 Matter Stores 300 Matter Capacity 300 Sight Range 16 Robot Scan Range 16 Terrain Scan Range 16 Terrain Scan Density 10 Jamming Range 12 EM Shielding 2 Armor Coverage 375 Resistance: TH 20 Resistance: EM 25 Core Shielding 20 Evasion (%) 55 Recoil Reduction 4 Offensive Hacking 30 Defensive Hacking 10 Authchip Count 1 Item Schematics ----------------- Lgt. Angular Momentum Engine | -8/Materials | Scanalyzed Plasma Cannon | -8/Storage | Hacked Imp. System Shield | -8/Storage | Hacked Thermic Laser | -6/Factory | Hacked Adv. EMP Blaster | -6/Factory | Hacked Imp. Hacking Suite | -6/Factory | Hacked Robot Schematics ------------------ B-36 Bruiser | -8/Storage | Hacked Fabricated ------------ Adv. EMP Blaster | x1 | -6/Factory Alien Tech Used ----------------- None Achievements -------------- Just Shoot The Terminal Challenges ------------ None Game ------ Seed InsulatedGreatClaymores Manual? 0 Play Time 02:49:47 Cumulative 158.6 hours Start 2024.02.28 @ 15:20:30 End 2024.02.28 @ 18:16:24 Sessions 1 Manual Loads 0 Difficulty Rogue Special Mode None Game No. 95 Rogue 95 Adventurer 0 Explorer 0 Win Type - Total 2 Types 2/0/0/0/0/0/0/0/0 Lore% 47 Gallery% 51 Achievement% 46 Wizard Run 0 Options --------- Layout 1 ASCII 0 Keyboard 1 Movement Vi Keybinds 0 Fullscreen 2 Font 24/Smallcaps Map View 50x35 Zoom Use 2% Tactical HUD 1 Map Filters NONE Filters NONE Steam 1 RUN: 2969ed59-729d-42e1-b427-c6c39471c34b